[Event "Late-Titled-Tuesday-Blitz-March-12-2024"]
[Site "Chess.com"]
[Date "2024.03.12"]
[Round "1"]
[White "Vadim_Galchenko"]
[Black "yuriydovzik"]
[Result "1-0"]
[WhiteElo "2580"]
[BlackElo "2096"]
[TimeControl "180+1"]
[EndTime "14:05:31 PDT"]
[Termination "Vadim_Galchenko won by checkmate"]

1. e4 {[%clk 0:03:00.9]} 1... c6 {[%clk 0:02:57.2]} 2. c4 {[%clk 0:03:00.8]}
2... e5 {[%clk 0:02:52.7]} 3. Nf3 {[%clk 0:03:00.1]} 3... d6 {[%clk 0:02:48.7]}
4. d4 {[%clk 0:03:00.3]} 4... Nd7 {[%clk 0:02:39.8]} 5. Nc3 {[%clk 0:03:00.1]}
5... Ngf6 {[%clk 0:02:34.7]} 6. Be2 {[%clk 0:02:59.4]} 6... Be7 {[%clk
0:02:32.5]} 7. Be3 {[%clk 0:02:59.3]} 7... O-O {[%clk 0:02:32]} 8. O-O {[%clk
0:02:59.3]} 8... Ng4 {[%clk 0:02:21.8]} 9. Bc1 {[%clk 0:02:56.7]} 9... exd4
{[%clk 0:02:18.9]} 10. Nxd4 {[%clk 0:02:57.6]} 10... Nge5 {[%clk 0:02:10.8]} 11.
f4 {[%clk 0:02:55.8]} 11... Ng6 {[%clk 0:02:04.6]} 12. Kh1 {[%clk 0:02:55.2]}
12... Nc5 {[%clk 0:01:56.3]} 13. Bf3 {[%clk 0:02:52]} 13... Ne6 {[%clk
0:01:43.9]} 14. Nde2 {[%clk 0:02:44.4]} 14... Nh4 {[%clk 0:01:29.5]} 15. Bg4
{[%clk 0:02:32.3]} 15... f5 {[%clk 0:01:26.4]} 16. exf5 {[%clk 0:02:27.2]} 16...
Nxf5 {[%clk 0:01:25.2]} 17. Ne4 {[%clk 0:02:26.3]} 17... Nc5 {[%clk 0:01:18.3]}
18. N2g3 {[%clk 0:02:15.2]} 18... Nxg3+ {[%clk 0:01:07.3]} 19. Nxg3 {[%clk
0:02:14.3]} 19... Bf6 {[%clk 0:00:59.9]} 20. Rb1 {[%clk 0:01:53.7]} 20... Bxg4
{[%clk 0:00:46.6]} 21. Qxg4 {[%clk 0:01:54.6]} 21... Nd3 {[%clk 0:00:43.1]} 22.
b4 {[%clk 0:01:47.7]} 22... d5 {[%clk 0:00:39.4]} 23. c5 {[%clk 0:01:43.4]}
23... Nxc1 {[%clk 0:00:27.7]} 24. Rbxc1 {[%clk 0:01:43.2]} 24... Qe8 {[%clk
0:00:23.1]} 25. Rce1 {[%clk 0:01:42.5]} 25... Qf7 {[%clk 0:00:22.7]} 26. Nf5
{[%clk 0:01:38.8]} 26... Qg6 {[%clk 0:00:16.7]} 27. Qh3 {[%clk 0:01:38.2]} 27...
Bc3 {[%clk 0:00:10.7]} 28. Ne7+ {[%clk 0:01:38]} 28... Kf7 {[%clk 0:00:07.7]}
29. Nxg6 {[%clk 0:01:37.8]} 29... hxg6 {[%clk 0:00:06.8]} 30. Qe6# {[%clk
0:01:37.1]} 1-0

[Event "Late-Titled-Tuesday-Blitz-March-12-2024"]
[Site "Chess.com"]
[Date "2024.03.12"]
[Round "1"]
[White "yosephtaher"]
[Black "Kavyev_Ruslan"]
[Result "1-0"]
[WhiteElo "2979"]
[BlackElo "2534"]
[TimeControl "180+1"]
[EndTime "14:05:40 PDT"]
[Termination "yosephtaher won by resignation"]

1. d4 {[%clk 0:03:00.9]} 1... Nf6 {[%clk 0:02:59.2]} 2. Nc3 {[%clk 0:03:01.5]}
2... d5 {[%clk 0:02:58]} 3. Bf4 {[%clk 0:03:01.8]} 3... a6 {[%clk 0:02:53.5]} 4.
e3 {[%clk 0:03:01.8]} 4... Nbd7 {[%clk 0:02:52.8]} 5. h3 {[%clk 0:03:00.9]} 5...
c5 {[%clk 0:02:49.8]} 6. Nf3 {[%clk 0:03:01.2]} 6... e6 {[%clk 0:02:49.4]} 7.
Bd3 {[%clk 0:02:59.7]} 7... Be7 {[%clk 0:02:47.7]} 8. a3 {[%clk 0:03:00.1]} 8...
b5 {[%clk 0:02:46.3]} 9. O-O {[%clk 0:03:00.2]} 9... O-O {[%clk 0:02:45.6]} 10.
Re1 {[%clk 0:03:00.7]} 10... Bb7 {[%clk 0:02:44.5]} 11. Ne5 {[%clk 0:03:00.5]}
11... Rc8 {[%clk 0:02:27.1]} 12. Qf3 {[%clk 0:02:59.3]} 12... c4 {[%clk
0:02:20.9]} 13. Bf1 {[%clk 0:02:59.2]} 13... Ne4 {[%clk 0:02:21.3]} 14. Nxe4
{[%clk 0:02:58.4]} 14... dxe4 {[%clk 0:02:22.2]} 15. Qg3 {[%clk 0:02:59.1]}
15... Nxe5 {[%clk 0:01:52.9]} 16. Bxe5 {[%clk 0:02:46.4]} 16... f6 {[%clk
0:01:52.4]} 17. Bf4 {[%clk 0:02:47]} 17... Bd5 {[%clk 0:01:46.6]} 18. Be2 {[%clk
0:02:38.8]} 18... Qe8 {[%clk 0:01:42.6]} 19. a4 {[%clk 0:02:34.6]} 19... b4
{[%clk 0:01:36.7]} 20. a5 {[%clk 0:02:34]} 20... Qg6 {[%clk 0:01:29.6]} 21. Qh2
{[%clk 0:02:33.4]} 21... Rc6 {[%clk 0:01:22.7]} 22. c3 {[%clk 0:02:28.5]} 22...
Rfc8 {[%clk 0:01:16.9]} 23. Kh1 {[%clk 0:02:26.8]} 23... Kh8 {[%clk 0:01:15.1]}
24. Ra4 {[%clk 0:02:26.2]} 24... b3 {[%clk 0:00:57.9]} 25. Raa1 {[%clk
0:02:23.7]} 25... Qe8 {[%clk 0:00:54.7]} 26. h4 {[%clk 0:02:21.9]} 26... Qd7
{[%clk 0:00:53.5]} 27. h5 {[%clk 0:02:19.3]} 27... Bd6 {[%clk 0:00:52.1]} 28. h6
{[%clk 0:02:16.5]} 28... g5 {[%clk 0:00:46.8]} 29. Bg3 {[%clk 0:02:16.9]} 29...
Rg8 {[%clk 0:00:37]} 30. Rf1 {[%clk 0:02:12.9]} 30... Qc7 {[%clk 0:00:28.1]} 31.
Bxd6 {[%clk 0:02:08.3]} 31... Qxd6 {[%clk 0:00:29]} 32. Qh3 {[%clk 0:02:07.9]}
32... Qc7 {[%clk 0:00:29.9]} 33. f3 {[%clk 0:02:06.2]} 33... Qd6 {[%clk
0:00:30.8]} 34. fxe4 {[%clk 0:02:04.8]} 34... Bxe4 {[%clk 0:00:26.9]} 35. Rxf6
{[%clk 0:02:05.5]} 35... Bf5 {[%clk 0:00:24.9]} 36. Qh2 {[%clk 0:02:04.8]} 36...
Qd5 {[%clk 0:00:14]} 37. Rf1 {[%clk 0:02:04.7]} 37... Qxa5 {[%clk 0:00:11.1]}
38. R1xf5 {[%clk 0:02:02.5]} 38... exf5 {[%clk 0:00:10.4]} 39. Rxc6 {[%clk
0:02:02]} 39... Qd5 {[%clk 0:00:10.3]} 40. Bxc4 {[%clk 0:01:59.8]} 40... Qxc6
{[%clk 0:00:09.4]} 41. Qe5+ {[%clk 0:02:00.5]} 1-0

[Event "Late-Titled-Tuesday-Blitz-March-12-2024"]
[Site "Chess.com"]
[Date "2024.03.12"]
[Round "1"]
[White "GHANDEEVAM2003"]
[Black "Noki102"]
[Result "1-0"]
[WhiteElo "3090"]
[BlackElo "2561"]
[TimeControl "180+1"]
[EndTime "14:05:51 PDT"]
[Termination "GHANDEEVAM2003 won by resignation"]

1. a3 {[%clk 0:03:00.9]} 1... e5 {[%clk 0:02:59.1]} 2. c4 {[%clk 0:02:59.7]}
2... Nc6 {[%clk 0:02:56.7]} 3. Nc3 {[%clk 0:03:00]} 3... a6 {[%clk 0:02:55.4]}
4. Nf3 {[%clk 0:02:58.8]} 4... Bc5 {[%clk 0:02:55.8]} 5. e3 {[%clk 0:02:58.1]}
5... d6 {[%clk 0:02:55.9]} 6. d4 {[%clk 0:02:58.5]} 6... exd4 {[%clk 0:02:54.9]}
7. exd4 {[%clk 0:02:59.4]} 7... Ba7 {[%clk 0:02:55.8]} 8. Be2 {[%clk 0:02:57.8]}
8... Nge7 {[%clk 0:02:56.1]} 9. O-O {[%clk 0:02:57.4]} 9... O-O {[%clk
0:02:55.5]} 10. Bg5 {[%clk 0:02:55.2]} 10... f6 {[%clk 0:02:54.9]} 11. Be3
{[%clk 0:02:48.4]} 11... Nf5 {[%clk 0:02:55.1]} 12. Qd2 {[%clk 0:02:48.2]} 12...
Re8 {[%clk 0:02:53.9]} 13. b4 {[%clk 0:02:48.8]} 13... Nxe3 {[%clk 0:02:51]} 14.
fxe3 {[%clk 0:02:49.7]} 14... Qe7 {[%clk 0:02:51.4]} 15. Nd5 {[%clk 0:02:49.4]}
15... Qf7 {[%clk 0:02:49.7]} 16. Bd3 {[%clk 0:02:48.8]} 16... h6 {[%clk
0:02:33.8]} 17. Qc2 {[%clk 0:02:48]} 17... Qd7 {[%clk 0:02:21.3]} 18. Bh7+
{[%clk 0:02:39.5]} 18... Kh8 {[%clk 0:02:20.4]} 19. Nh4 {[%clk 0:02:38.9]} 19...
Ne7 {[%clk 0:01:42.7]} 20. Nxe7 {[%clk 0:02:35.8]} 20... Rxe7 {[%clk 0:01:43.6]}
21. Ng6+ {[%clk 0:02:11.6]} 21... Kxh7 {[%clk 0:01:42.5]} 22. Nxe7+ {[%clk
0:02:05.9]} 22... Kh8 {[%clk 0:01:42.7]} 23. Ng6+ {[%clk 0:01:59.3]} 23... Kg8
{[%clk 0:01:42.8]} 24. Rf3 {[%clk 0:01:59.9]} 24... Qf7 {[%clk 0:01:30.2]} 25.
Raf1 {[%clk 0:02:00.3]} 25... Be6 {[%clk 0:01:23.9]} 26. d5 {[%clk 0:01:55.3]}
26... Bd7 {[%clk 0:01:21.6]} 27. Nf4 {[%clk 0:01:53.3]} 27... Re8 {[%clk
0:01:18.7]} 28. c5 {[%clk 0:01:53.8]} 28... dxc5 {[%clk 0:01:14.3]} 29. bxc5
{[%clk 0:01:54.7]} 29... Bb5 {[%clk 0:01:13.6]} 30. Rc1 {[%clk 0:01:52.8]} 30...
Qe7 {[%clk 0:01:00.9]} 31. h3 {[%clk 0:01:51.6]} 31... b6 {[%clk 0:00:46.8]} 32.
d6 {[%clk 0:01:47.2]} 32... cxd6 {[%clk 0:00:45.4]} 33. c6 {[%clk 0:01:47.2]}
33... Rc8 {[%clk 0:00:37.8]} 34. Qf5 {[%clk 0:01:42.8]} 34... Rxc6 {[%clk
0:00:28.2]} 35. Qd5+ {[%clk 0:01:42.4]} 35... Qf7 {[%clk 0:00:19.8]} 36. Rxc6
{[%clk 0:01:43.3]} 36... Qxd5 {[%clk 0:00:18.2]} 37. Rc8+ {[%clk 0:01:43.4]} 1-0

[Event "Late-Titled-Tuesday-Blitz-March-12-2024"]
[Site "Chess.com"]
[Date "2024.03.12"]
[Round "1"]
[White "TigrVShlyape"]
[Black "HandKnit"]
[Result "1-0"]
[WhiteElo "2927"]
[BlackElo "2522"]
[TimeControl "180+1"]
[EndTime "14:05:51 PDT"]
[Termination "TigrVShlyape won by resignation"]

1. e4 {[%clk 0:03:00.9]} 1... c5 {[%clk 0:02:55.2]} 2. Nf3 {[%clk 0:03:00.6]}
2... e6 {[%clk 0:02:55.1]} 3. d4 {[%clk 0:02:59.2]} 3... cxd4 {[%clk 0:02:56]}
4. Nxd4 {[%clk 0:02:59.5]} 4... a6 {[%clk 0:02:56.5]} 5. Nc3 {[%clk 0:02:59]}
5... b5 {[%clk 0:02:55.9]} 6. Bd3 {[%clk 0:02:53.6]} 6... Bb7 {[%clk 0:02:55.7]}
7. O-O {[%clk 0:02:47.2]} 7... Nc6 {[%clk 0:02:55.6]} 8. Nxc6 {[%clk 0:02:44.1]}
8... Bxc6 {[%clk 0:02:56.5]} 9. Re1 {[%clk 0:02:42.8]} 9... Qb8 {[%clk
0:02:54.3]} 10. Nd5 {[%clk 0:02:22.7]} 10... Bd6 {[%clk 0:02:52]} 11. Qh5 {[%clk
0:02:20.2]} 11... Ne7 {[%clk 0:02:49.2]} 12. Nxe7 {[%clk 0:02:16.4]} 12... Bxe7
{[%clk 0:02:50.1]} 13. e5 {[%clk 0:02:11.6]} 13... h6 {[%clk 0:02:42.7]} 14. Qg4
{[%clk 0:02:03]} 14... g5 {[%clk 0:02:40.6]} 15. Qh5 {[%clk 0:02:02.2]} 15... b4
{[%clk 0:02:21.6]} 16. Bd2 {[%clk 0:01:55.9]} 16... a5 {[%clk 0:02:17.2]} 17. c3
{[%clk 0:01:51.5]} 17... Qb7 {[%clk 0:02:12]} 18. f3 {[%clk 0:01:43.2]} 18...
Bb5 {[%clk 0:01:38.9]} 19. c4 {[%clk 0:01:39.9]} 19... Bc6 {[%clk 0:01:38.6]}
20. Kh1 {[%clk 0:01:37.3]} 20... a4 {[%clk 0:01:35.1]} 21. Be4 {[%clk
0:01:36.5]} 21... a3 {[%clk 0:01:32.1]} 22. b3 {[%clk 0:01:36.1]} 22... Ra5
{[%clk 0:01:28.9]} 23. Bxc6 {[%clk 0:01:33.6]} 23... Qxc6 {[%clk 0:01:26.8]} 24.
f4 {[%clk 0:01:32.7]} 24... gxf4 {[%clk 0:01:18.2]} 25. Bxf4 {[%clk 0:01:31.7]}
25... Rg8 {[%clk 0:01:16.3]} 26. Re2 {[%clk 0:01:31.3]} 26... Bg5 {[%clk
0:01:11.2]} 27. Bg3 {[%clk 0:01:27.6]} 27... Qc5 {[%clk 0:00:34.3]} 28. Rf1
{[%clk 0:01:26.4]} 28... Rf8 {[%clk 0:00:30.1]} 29. Ref2 {[%clk 0:01:17.8]}
29... Qe7 {[%clk 0:00:20.9]} 30. Rf3 {[%clk 0:01:11.9]} 1-0

[Event "Late-Titled-Tuesday-Blitz-March-12-2024"]
[Site "Chess.com"]
[Date "2024.03.12"]
[Round "1"]
[White "TanitoluwaAps116"]
[Black "RuleOfTwo"]
[Result "1-0"]
[WhiteElo "2831"]
[BlackElo "2469"]
[TimeControl "180+1"]
[EndTime "14:06:00 PDT"]
[Termination "TanitoluwaAps116 won on time"]

1. e4 {[%clk 0:03:00.9]} 1... b6 {[%clk 0:02:59.1]} 2. d4 {[%clk 0:03:00.7]}
2... Bb7 {[%clk 0:02:59.8]} 3. Bd3 {[%clk 0:03:01.3]} 3... e6 {[%clk 0:03:00.6]}
4. Nf3 {[%clk 0:02:58.4]} 4... Nf6 {[%clk 0:03:00.5]} 5. Qe2 {[%clk 0:02:58.1]}
5... d5 {[%clk 0:02:57]} 6. e5 {[%clk 0:02:57.9]} 6... Nfd7 {[%clk 0:02:57.6]}
7. O-O {[%clk 0:02:56.2]} 7... c5 {[%clk 0:02:55.3]} 8. c3 {[%clk 0:02:55.9]}
8... Qc8 {[%clk 0:02:55.7]} 9. Ng5 {[%clk 0:02:20.1]} 9... Ba6 {[%clk
0:02:30.9]} 10. Qh5 {[%clk 0:02:02.7]} 10... g6 {[%clk 0:02:23.2]} 11. Qf3
{[%clk 0:02:02.2]} 11... f5 {[%clk 0:02:00.3]} 12. exf6 {[%clk 0:02:02.3]} 12...
Bxd3 {[%clk 0:01:55.7]} 13. f7+ {[%clk 0:01:54.8]} 13... Ke7 {[%clk 0:01:49.4]}
14. Qxd3 {[%clk 0:01:36]} 14... Bh6 {[%clk 0:01:09.1]} 15. Re1 {[%clk
0:01:25.3]} 15... Bxg5 {[%clk 0:00:57]} 16. Bxg5+ {[%clk 0:01:26.2]} 16... Kxf7
{[%clk 0:00:57.7]} 17. Qf3+ {[%clk 0:01:21.4]} 17... Kg7 {[%clk 0:00:53]} 18.
Rxe6 {[%clk 0:01:14.6]} 18... Rf8 {[%clk 0:00:46.3]} 19. Re7+ {[%clk 0:01:11.7]}
19... Kg8 {[%clk 0:00:14.5]} 20. Qxd5+ {[%clk 0:01:03.6]} 20... Kh8 {[%clk
0:00:15.1]} 21. Qxa8 {[%clk 0:01:00.1]} 21... cxd4 {[%clk 0:00:11.8]} 22. Qd5
{[%clk 0:00:51.9]} 1-0

[Event "Late-Titled-Tuesday-Blitz-March-12-2024"]
[Site "Chess.com"]
[Date "2024.03.12"]
[Round "1"]
[White "Roedor"]
[Black "yaguigor"]
[Result "1/2-1/2"]
[WhiteElo "2272"]
[BlackElo "2617"]
[TimeControl "180+1"]
[EndTime "14:06:15 PDT"]
[Termination "Game drawn by repetition"]

1. c4 {[%clk 0:02:55.6]} 1... c6 {[%clk 0:02:58.1]} 2. Nf3 {[%clk 0:02:55.2]}
2... d5 {[%clk 0:02:57.4]} 3. d4 {[%clk 0:02:55.1]} 3... Nf6 {[%clk 0:02:56.2]}
4. Qb3 {[%clk 0:02:55]} 4... dxc4 {[%clk 0:02:55.2]} 5. Qxc4 {[%clk 0:02:55.9]}
5... Bf5 {[%clk 0:02:54.8]} 6. Nc3 {[%clk 0:02:55.4]} 6... e6 {[%clk 0:02:54.7]}
7. g3 {[%clk 0:02:55.8]} 7... Be7 {[%clk 0:02:53.7]} 8. Bg2 {[%clk 0:02:55.9]}
8... Nbd7 {[%clk 0:02:52.2]} 9. O-O {[%clk 0:02:56]} 9... O-O {[%clk 0:02:51.6]}
10. Qb3 {[%clk 0:02:56.3]} 10... Qb6 {[%clk 0:02:49.3]} 11. e3 {[%clk
0:02:52.1]} 11... Bd3 {[%clk 0:02:29]} 12. Re1 {[%clk 0:02:43.5]} 12... Qxb3
{[%clk 0:02:26.3]} 13. axb3 {[%clk 0:02:44.4]} 13... Ne4 {[%clk 0:02:16.4]} 14.
Nxe4 {[%clk 0:02:43.2]} 14... Bxe4 {[%clk 0:02:15.7]} 15. Ne5 {[%clk 0:02:37.7]}
15... Bxg2 {[%clk 0:02:09.6]} 16. Nxd7 {[%clk 0:02:35.7]} 16... Rfd8 {[%clk
0:02:08.3]} 17. Kxg2 {[%clk 0:02:23.7]} 17... Rxd7 {[%clk 0:02:07.8]} 18. Bd2
{[%clk 0:02:24.2]} 18... c5 {[%clk 0:02:04.4]} 19. Bc3 {[%clk 0:02:23.3]} 19...
a6 {[%clk 0:01:59]} 20. Kf3 {[%clk 0:02:14.3]} 20... Rc8 {[%clk 0:01:54]} 21.
Ke4 {[%clk 0:02:10.3]} 21... f5+ {[%clk 0:01:50.6]} 22. Kf3 {[%clk 0:01:59.4]}
22... Kf7 {[%clk 0:01:45.4]} 23. dxc5 {[%clk 0:01:55.3]} 23... Bxc5 {[%clk
0:01:43.6]} 24. Red1 {[%clk 0:01:55]} 24... Rcd8 {[%clk 0:01:40.6]} 25. Rxd7+
{[%clk 0:01:53.6]} 25... Rxd7 {[%clk 0:01:41.5]} 26. Rc1 {[%clk 0:01:53.4]}
26... Bd6 {[%clk 0:01:35.8]} 27. h3 {[%clk 0:01:52.3]} 27... e5 {[%clk 0:01:34]}
28. e4 {[%clk 0:01:51.3]} 28... g6 {[%clk 0:01:31.9]} 29. g4 {[%clk 0:01:51.3]}
29... Ke6 {[%clk 0:01:31.2]} 30. Rd1 {[%clk 0:01:49.1]} 30... Rf7 {[%clk
0:01:26.5]} 31. exf5+ {[%clk 0:01:44.1]} 31... gxf5 {[%clk 0:01:25.8]} 32. Kg2
{[%clk 0:01:26.7]} 32... e4 {[%clk 0:01:12.7]} 33. gxf5+ {[%clk 0:01:06.5]}
33... Rxf5 {[%clk 0:01:11.7]} 34. Re1 {[%clk 0:01:07.2]} 34... Rg5+ {[%clk
0:01:04.1]} 35. Kf1 {[%clk 0:01:07.3]} 35... Kf5 {[%clk 0:00:55.5]} 36. Rd1
{[%clk 0:01:01.1]} 36... Rg6 {[%clk 0:00:51.6]} 37. Rd5+ {[%clk 0:00:57]} 37...
Ke6 {[%clk 0:00:50.7]} 38. Rd4 {[%clk 0:00:48.9]} 38... Kf5 {[%clk 0:00:48.5]}
39. Rd5+ {[%clk 0:00:49.2]} 39... Ke6 {[%clk 0:00:43.7]} 40. Rd4 {[%clk
0:00:49.4]} 40... Kf5 {[%clk 0:00:41.6]} 41. Rd5+ {[%clk 0:00:49.5]} 1/2-1/2

[Event "Late-Titled-Tuesday-Blitz-March-12-2024"]
[Site "Chess.com"]
[Date "2024.03.12"]
[Round "1"]
[White "LUISMIGUELOV"]
[Black "SlavenPastar"]
[Result "0-1"]
[WhiteElo "2128"]
[BlackElo "2588"]
[TimeControl "180+1"]
[EndTime "14:06:16 PDT"]
[Termination "SlavenPastar won by checkmate"]

1. d4 {[%clk 0:02:57.4]} 1... b6 {[%clk 0:02:59.7]} 2. Nf3 {[%clk 0:02:55.3]}
2... Bb7 {[%clk 0:03:00.1]} 3. Bf4 {[%clk 0:02:54.9]} 3... Nf6 {[%clk
0:03:00.5]} 4. e3 {[%clk 0:02:54]} 4... e6 {[%clk 0:03:00.9]} 5. Be2 {[%clk
0:02:49.3]} 5... Be7 {[%clk 0:02:59.3]} 6. c4 {[%clk 0:02:46.9]} 6... Nh5 {[%clk
0:02:55.6]} 7. Be5 {[%clk 0:02:44.6]} 7... d6 {[%clk 0:02:53.8]} 8. Bg3 {[%clk
0:02:41.5]} 8... Nd7 {[%clk 0:02:48.3]} 9. Nc3 {[%clk 0:02:40.4]} 9... g6 {[%clk
0:02:41.3]} 10. Qc2 {[%clk 0:02:25.4]} 10... Kf8 {[%clk 0:02:37.6]} 11. O-O
{[%clk 0:02:14.9]} 11... Kg7 {[%clk 0:02:34.2]} 12. Nd2 {[%clk 0:02:11.9]} 12...
Nxg3 {[%clk 0:02:32.9]} 13. fxg3 {[%clk 0:02:11]} 13... Bg5 {[%clk 0:02:21.4]}
14. Qd3 {[%clk 0:02:04.7]} 14... f5 {[%clk 0:02:19.1]} 15. Bf3 {[%clk
0:01:57.8]} 15... c6 {[%clk 0:01:50.7]} 16. e4 {[%clk 0:01:54.5]} 16... Nf6
{[%clk 0:01:32.1]} 17. exf5 {[%clk 0:01:51.3]} 17... exf5 {[%clk 0:01:32.8]} 18.
Rae1 {[%clk 0:01:50.8]} 18... Qd7 {[%clk 0:01:26.7]} 19. h4 {[%clk 0:01:49.5]}
19... Bh6 {[%clk 0:01:19.3]} 20. d5 {[%clk 0:01:48]} 20... Rhe8 {[%clk
0:01:14.4]} 21. dxc6 {[%clk 0:01:31.1]} 21... Bxc6 {[%clk 0:01:14.3]} 22. Bxc6
{[%clk 0:01:30.5]} 22... Qxc6 {[%clk 0:01:15.2]} 23. Nf3 {[%clk 0:01:26.4]}
23... Qc5+ {[%clk 0:00:55.9]} 24. Qd4 {[%clk 0:01:25.3]} 24... Be3+ {[%clk
0:00:23.7]} 25. Rxe3 {[%clk 0:01:18.8]} 25... Rxe3 {[%clk 0:00:24.6]} 26. Qxc5
{[%clk 0:01:12]} 26... dxc5 {[%clk 0:00:21.9]} 27. Rd1 {[%clk 0:01:11.5]} 27...
Rae8 {[%clk 0:00:19]} 28. Rd6 {[%clk 0:01:06.7]} 28... R3e6 {[%clk 0:00:15.8]}
29. Rd3 {[%clk 0:01:04.1]} 29... R8e7 {[%clk 0:00:13.2]} 30. Ng5 {[%clk
0:01:03.4]} 30... Re1+ {[%clk 0:00:13.1]} 31. Kh2 {[%clk 0:00:56.5]} 31... Ng4+
{[%clk 0:00:13.1]} 32. Kh3 {[%clk 0:00:56]} 32... Rh1# {[%clk 0:00:14]} 0-1

[Event "Late-Titled-Tuesday-Blitz-March-12-2024"]
[Site "Chess.com"]
[Date "2024.03.12"]
[Round "1"]
[White "ValeriyGrinev"]
[Black "Yushko_Olga"]
[Result "0-1"]
[WhiteElo "2575"]
[BlackElo "2183"]
[TimeControl "180+1"]
[EndTime "14:06:18 PDT"]
[Termination "Yushko_Olga won by resignation"]

1. d4 {[%clk 0:03:00.9]} 1... e6 {[%clk 0:02:58.5]} 2. c4 {[%clk 0:03:01.5]}
2... Nf6 {[%clk 0:02:56.5]} 3. Nc3 {[%clk 0:03:01.7]} 3... d5 {[%clk 0:02:56.1]}
4. cxd5 {[%clk 0:03:01.3]} 4... exd5 {[%clk 0:02:55.9]} 5. Bg5 {[%clk
0:03:01.8]} 5... Nbd7 {[%clk 0:02:54.1]} 6. e3 {[%clk 0:03:01.8]} 6... Be7
{[%clk 0:02:53.8]} 7. Bd3 {[%clk 0:03:02.1]} 7... O-O {[%clk 0:02:54.3]} 8. Qc2
{[%clk 0:03:01.8]} 8... c5 {[%clk 0:02:53]} 9. dxc5 {[%clk 0:02:59.9]} 9... h6
{[%clk 0:02:43.1]} 10. Bxf6 {[%clk 0:02:33.8]} 10... Nxf6 {[%clk 0:02:43.1]} 11.
Na4 {[%clk 0:02:33.7]} 11... Qa5+ {[%clk 0:02:40.1]} 12. Kf1 {[%clk 0:02:31.4]}
12... Bd7 {[%clk 0:02:36.3]} 13. Nc3 {[%clk 0:02:24.5]} 13... Bxc5 {[%clk
0:02:32.3]} 14. Nf3 {[%clk 0:02:23.3]} 14... Rac8 {[%clk 0:02:30.8]} 15. a3
{[%clk 0:02:19.1]} 15... Bb4 {[%clk 0:02:26]} 16. Rc1 {[%clk 0:01:44]} 16...
Bxc3 {[%clk 0:02:25.1]} 17. bxc3 {[%clk 0:01:44.2]} 17... Qxa3 {[%clk 0:02:24]}
18. Nd4 {[%clk 0:01:44.8]} 18... Ne4 {[%clk 0:02:18.2]} 19. Bxe4 {[%clk
0:01:39.5]} 19... dxe4 {[%clk 0:02:19.1]} 20. h3 {[%clk 0:01:38.1]} 20... b5
{[%clk 0:02:14.5]} 21. Kg1 {[%clk 0:01:36.7]} 21... b4 {[%clk 0:02:13]} 22. c4
{[%clk 0:01:36.2]} 22... Ba4 {[%clk 0:02:09.3]} 23. Qb1 {[%clk 0:01:32]} 23...
b3 {[%clk 0:02:01.4]} 24. Kh2 {[%clk 0:01:04]} 24... b2 {[%clk 0:01:53.1]} 25.
Rce1 {[%clk 0:01:03.8]} 25... Rxc4 {[%clk 0:01:43.1]} 26. Qxe4 {[%clk
0:00:46.6]} 26... Qd6+ {[%clk 0:01:31.3]} 27. g3 {[%clk 0:00:44.6]} 27... Bc2
{[%clk 0:01:30.7]} 28. Qb7 {[%clk 0:00:28.1]} 28... b1=Q {[%clk 0:01:24.7]} 29.
Rxb1 {[%clk 0:00:26]} 29... Bxb1 {[%clk 0:01:25.6]} 30. Rxb1 {[%clk 0:00:25.6]}
30... Rc7 {[%clk 0:01:17.9]} 31. Qb5 {[%clk 0:00:24.8]} 31... a6 {[%clk
0:01:16.2]} 32. Qf5 {[%clk 0:00:21.2]} 32... Rfc8 {[%clk 0:01:10.9]} 33. Qg4
{[%clk 0:00:20.9]} 33... Qf6 {[%clk 0:01:04.5]} 34. Ra1 {[%clk 0:00:19.7]} 34...
Qxf2+ {[%clk 0:01:03.8]} 35. Kh1 {[%clk 0:00:19.9]} 35... Rc1+ {[%clk
0:01:02.6]} 36. Rxc1 {[%clk 0:00:20]} 36... Rxc1+ {[%clk 0:01:03.4]} 0-1

[Event "Late-Titled-Tuesday-Blitz-March-12-2024"]
[Site "Chess.com"]
[Date "2024.03.12"]
[Round "1"]
[White "SchmakAttack"]
[Black "sorch29"]
[Result "1-0"]
[WhiteElo "2810"]
[BlackElo "2459"]
[TimeControl "180+1"]
[EndTime "14:06:23 PDT"]
[Termination "SchmakAttack won by checkmate"]

1. e4 {[%clk 0:03:00.9]} 1... c5 {[%clk 0:02:57.6]} 2. Nf3 {[%clk 0:02:59.3]}
2... Nc6 {[%clk 0:02:55.9]} 3. Nc3 {[%clk 0:02:53.4]} 3... g6 {[%clk 0:02:50.7]}
4. d4 {[%clk 0:02:52.4]} 4... cxd4 {[%clk 0:02:51.6]} 5. Nxd4 {[%clk 0:02:53]}
5... Bg7 {[%clk 0:02:51.9]} 6. Be3 {[%clk 0:02:53.6]} 6... Nf6 {[%clk
0:02:51.6]} 7. Bc4 {[%clk 0:02:54.2]} 7... O-O {[%clk 0:02:51.8]} 8. Bb3 {[%clk
0:02:54.2]} 8... a5 {[%clk 0:02:50.5]} 9. O-O {[%clk 0:02:36.2]} 9... Ng4 {[%clk
0:02:21.9]} 10. Qxg4 {[%clk 0:02:19.1]} 10... Nxd4 {[%clk 0:02:21]} 11. Qd1
{[%clk 0:02:18.6]} 11... Nxb3 {[%clk 0:02:11.3]} 12. axb3 {[%clk 0:02:17.7]}
12... d6 {[%clk 0:02:00.5]} 13. Nd5 {[%clk 0:02:04.5]} 13... Bxb2 {[%clk
0:01:40.9]} 14. Bb6 {[%clk 0:02:01.1]} 14... Qd7 {[%clk 0:01:37.8]} 15. Bd4
{[%clk 0:02:01.1]} 15... Bxa1 {[%clk 0:01:08.2]} 16. Bxa1 {[%clk 0:02:01]} 16...
Qd8 {[%clk 0:00:57]} 17. Qd2 {[%clk 0:01:16]} 17... Be6 {[%clk 0:00:50.8]} 18.
Nf4 {[%clk 0:01:09.5]} 18... Qd7 {[%clk 0:00:45.9]} 19. h4 {[%clk 0:01:02.3]}
19... f6 {[%clk 0:00:45.2]} 20. Re1 {[%clk 0:00:51.9]} 20... Bf7 {[%clk
0:00:39.2]} 21. e5 {[%clk 0:00:52]} 21... fxe5 {[%clk 0:00:34]} 22. Rxe5 {[%clk
0:00:52.6]} 22... Rad8 {[%clk 0:00:31.2]} 23. Qd4 {[%clk 0:00:37.9]} 23... dxe5
{[%clk 0:00:11.3]} 24. Qxe5 {[%clk 0:00:38.8]} 24... Bd5 {[%clk 0:00:03.9]} 25.
Qg7# {[%clk 0:00:38.3]} 1-0